lending/lending_fUSD_20260330
["ID","MTS","AMOUNT","RATE_DAILY","PERIOD"]
[419081715,1774846242045,-199.112351,0.00015162,2]
[419081716,1774846242055,-500.0,0.00015174,2]
[419081717,1774846242065,-5000.0,0.00015199,2]
[419081718,1774846242075,-292.53103662,0.00015275,2]
[419081719,1774846242084,-201.93286099,0.00015275,2]
[419081720,1774846242094,-200.0,0.00015275,2]
[419081721,1774846242104,-859.80605061,0.00015275,2]
[419081722,1774846242114,-350.0,0.00015289,2]
[419081723,1774846242124,-173.72,0.0001532,2]
[419081724,1774846242134,-305.10095098,0.00015342,2]
[419081725,1774846242144,-168.140208,0.00015362,7]
[419081726,1774846242154,-1695.09032677,0.00015377,2]
[419081727,1774846242164,-152.0,0.00015395,8]
[419081728,1774846242174,-2808.0,0.000154,2]
[419081729,1774846242184,-436.09,0.00015421,2]
[419081730,1774846242193,-887.934255,0.00015438,7]
[419081731,1774846242203,-263.08,0.00015525,30]
[419081732,1774846242213,-319.0,0.00015532,2]
[419081733,1774846242223,-500.0,0.00015534,2]
[419081734,1774846242233,-319.0,0.00015575,2]
[419081735,1774846242248,-2602.0,0.00015581,5]
[419081736,1774846242258,-350.0,0.0001561,2]
[419081737,1774846242269,-319.0,0.00015617,2]
[419081738,1774846242279,-161.0,0.0001563,2]
[419081739,1774846242289,-350.0,0.00015637,2]
[419081740,1774846242300,-500.0,0.00015681,2]
[419081741,1774846242310,-200.0,0.00015681,2]
[419081742,1774846242320,-319.0,0.000157,2]
[419081743,1774846242330,-152.0,0.00015786,9]
[419081744,1774846242340,-350.0,0.00015813,2]
[419081745,1774846242350,-350.0,0.00015816,2]
[419081746,1774846242359,-599.60298507,0.00015822,2]
[419081747,1774846242369,-209.40437684,0.00015823,2]
[419081748,1774846242380,-200.0,0.00015823,2]
[419081749,1774846242389,-891.61887448,0.00015823,2]
[419081750,1774846242400,-786.31028233,0.00015838,2]
[419081751,1774846242410,-156.0,0.00015838,2]
[419081752,1774846242420,-227.70345584,0.00015838,2]
[419081753,1774846242430,-154.71826556,0.00015838,2]
[419081754,1774846242440,-1524.0,0.00015838,2]
[419081755,1774846242451,-1524.0,0.00015838,2]
[419081756,1774846242460,-1524.0,0.00015838,2]
[419081757,1774846242471,-1524.0,0.00015838,2]
[419081758,1774846242481,-1524.0,0.00015838,2]
[419081759,1774846242491,-1524.0,0.00015838,2]
[419081760,1774846242501,-1524.0,0.00015838,2]
[419081761,1774846242511,-1524.0,0.00015838,2]
[419081762,1774846242521,-1524.0,0.00015838,2]
[419081763,1774846242531,-160.36493532,0.00015838,2]
[419081764,1774846242542,-1524.0,0.00015838,2]
[419081765,1774846242551,-156.0,0.00015838,2]
[419081766,1774846242562,-1524.0,0.00015838,2]
[419081767,1774846242572,-156.0,0.00015838,2]
[419081768,1774846242582,-168.9263432,0.00015838,2]
[419081769,1774846242593,-153.0,0.00015838,2]
[419081770,1774846242603,-1524.0,0.00015838,2]
[419081771,1774846242613,-153.65399502,0.00015838,2]
[419081772,1774846242623,-1524.0,0.00015838,2]
[419081773,1774846242633,-1524.0,0.00015838,2]
[419081774,1774846242643,-1524.0,0.00015838,2]
[419081775,1774846242654,-673.70299115,0.00015838,2]
[419081776,1774846242664,-300.0,0.00015838,2]
[419081777,1774846242674,-151.0,0.00015838,2]
[419081778,1774846242684,-151.0,0.00015838,2]
[419081779,1774846242694,-294.324063,0.00015838,2]
[419081780,1774846242704,-151.0,0.00015838,2]
[419081781,1774846242714,-151.0,0.00015838,2]
[419081782,1774846242726,-151.0,0.00015838,2]
[419081783,1774846242736,-151.0,0.00015838,2]
[419081784,1774846242746,-151.0,0.00015838,2]
[419081785,1774846242757,-2000.0,0.0001584,2]
[419081786,1774846242767,-2000.0,0.0001584,2]
[419081787,1774846242777,-500.0,0.00015846,2]
[419081788,1774846242787,-2000.0,0.0001585,2]
[419081789,1774846242797,-200.0,0.00015871,2]
[419081790,1774846242807,-258.70523364,0.00015881,2]
[419081791,1774846242818,-500.0,0.00015883,2]
[419081792,1774846242828,-229479.1701721,0.00015884,2]
[419081793,1774846242839,-7544.010045,0.00015884,2]
[419081794,1774846242849,-4745.1989137,0.00015884,2]
[419081795,1774846242859,-151.0,0.00015884,2]
[419081796,1774846242869,-151.0,0.00015884,2]
[419081797,1774846242879,-151.0,0.00015884,2]
[419081798,1774846242889,-1093.200373,0.00015884,2]
[419081799,1774846242898,-1093.200373,0.00015884,2]
[419081800,1774846242909,-1093.200373,0.00015884,2]
[419081801,1774846242919,-1093.200373,0.00015884,2]
[419081802,1774846242928,-199.112351,0.00015884,2]
[419081803,1774846242939,-151.0,0.00015884,2]
[419081804,1774846242950,-199.112351,0.00015884,2]
[419081805,1774846242961,-199.112351,0.00015884,2]
[419081806,1774846242971,-199.112351,0.00015884,2]
[419081807,1774846242982,-158.195844,0.00015884,2]
[419081808,1774846242992,-158.195844,0.00015884,2]
[419081809,1774846243002,-158.195844,0.00015884,2]
[419081810,1774846243013,-158.195844,0.00015884,2]
[419081811,1774846243023,-151.0,0.00015884,2]
[419081812,1774846243033,-151.0,0.00015884,2]
[419081813,1774846243045,-151.0,0.00015884,2]
[419081814,1774846243055,-151.0,0.00015884,2]
[419081815,1774846243065,-151.0,0.00015884,2]
[419081816,1774846243075,-151.0,0.00015884,2]
[419081817,1774846243090,-151.0,0.00015884,2]
[419081818,1774846243101,-444.7013,0.000159,22]
[419081819,1774846243112,-873.4353687,0.000159,2]
[419081820,1774846243123,-4907.46442992,0.000159,2]
[419081821,1774846243153,-5092.53557008,0.000159,2]
[419081822,1774846243164,-13819.95826474,0.000159,2]
[419081823,1774846243175,-333.27438218,0.000159,2]
[419081824,1774846243185,-1695.09032677,0.000159,2]
[419081825,1774846243196,-236.817819,0.00015905,2]
[419081826,1774846243207,-266.0,0.00015905,2]
[419081827,1774846243218,-319.0,0.0001594,2]
[419081828,1774846243228,-2808.0,0.00015941,2]
[419081829,1774846243239,-161.0,0.00015941,2]
[419081830,1774846243249,-319.0,0.00015943,2]
[419081831,1774846243259,-436.10528309,0.00015948,2]
[419081832,1774846243270,-161.0,0.0001595,2]
[419081833,1774846243281,-1571.0,0.0001595,2]
[419081834,1774846243291,-319.0,0.00015965,2]
[419081835,1774846243302,-319.0,0.00015969,2]
[419081836,1774846243312,-357.94991842,0.00015973,2]
[419081837,1774846243322,-500.79070752,0.00015973,2]
[419081838,1774846243333,-500.5020395,0.00015973,2]
[419081839,1774846243343,-500.0,0.00015973,2]
[419081840,1774846243353,-500.0,0.00015973,2]
[419081841,1774846243363,-500.0,0.00015973,2]
[419081842,1774846243373,-500.0,0.00015973,2]
[419081843,1774846243384,-500.0,0.00015973,2]
[419081844,1774846243394,-414.00821866,0.00015973,2]
[419081845,1774846243404,-241.11195422,0.00015973,2]
[419081846,1774846243415,-500.0,0.00015973,2]
[419081847,1774846243425,-500.0,0.00015973,2]
[419081848,1774846243435,-342.63485553,0.00015973,2]
[419081849,1774846243445,-155.0,0.00015989,2]
[419081850,1774846243455,-319.0,0.00015992,2]
[419081851,1774846243465,-797.37,0.00015994,2]
[419081852,1774846243475,-185.137653,0.00015997,2]
[419081853,1774846243485,-666.0,0.00015999,2]
[419081854,1774846243495,-500.0,0.00015999,2]
[419081855,1774846243504,-500.0,0.00015999,2]
[419081856,1774846243514,-500.0,0.00015999,2]
[419081857,1774846243524,-500.0,0.00015999,2]
[419081858,1774846243535,-500.0,0.00015999,2]
[419081859,1774846243544,-243.19741568,0.00015999,2]
[419081860,1774846243555,-500.0,0.00015999,2]
[419081861,1774846243565,-500.0,0.00015999,2]
[419081862,1774846243576,-500.0,0.00015999,2]
[419081863,1774846243585,-500.0,0.00015999,2]
[419081864,1774846243596,-215.29709498,0.00015999,2]
[419081865,1774846243606,-604683.89816401,0.00016,2]
[419081866,1774846243622,-231476.668437,0.00016,2]
[419081867,1774846243636,-1005.35661017,0.00016,2]
[419081868,1774846243656,-357.39631745,0.00016,2]
[419081869,1774846243669,-1086.8797393,0.00016,2]
[419081870,1774846243681,-319.40489965,0.00016,2]
[419081871,1774846243762,-691.16678479,0.00011099,2]
[419081872,1774846243775,-485.82759745,0.00011099,2]
[419081873,1774846243842,-3448.00019348,0.00011099,2]
[419081874,1774846243855,-908.76987309,0.00011099,2]
[419081875,1774846243865,-746.58502813,0.00016,2]
[419081876,1774846243877,-40000.108401,0.00016,2]
[419081877,1774846243900,-602444.62634463,0.00016,2]
[419081878,1774846243912,-750.0,0.00016,2]
[419081879,1774846243924,-1000.49446978,0.00016,2]
[419081880,1774846243945,-14110.32950144,0.00016,2]
[419081881,1774846243956,-1015.96867818,0.00016,2]
[419081903,1774846248951,-500.0,0.00010227,2]
[419081905,1774846248961,-468.22944091,0.00010227,2]
[419081907,1774846248973,-162.86423999,0.00010227,2]
[419081909,1774846248983,-151.0,0.00011301,2]
[419081910,1774846248993,-5533.76444881,0.00011699,2]
[419081911,1774846249002,-2468.0,0.00014243,2]
[419081912,1774846249011,-3287.9046172,0.00016,2]
[419081913,1774846249031,-952295.33677175,0.00016,2]
[419081914,1774846249043,-748203.72178538,0.00016,2]
[419081915,1774846249052,-267013.25560622,0.00016,2]
[419081916,1774846249075,-4875.64711428,0.000159,2]
[419081917,1774846249084,-727.42507122,0.00016,2]
[419081918,1774846249095,-7350.20269681,0.00016,2]
[419081919,1774846249106,-5583.49066782,0.00016,2]
[419081922,1774846269695,8628.86,8.578e-05,2]
[419081923,1774846269718,1371.14,8.578e-05,2]
[419081924,1774846275864,8628.87,8.578e-05,2]
[419081925,1774846275892,1371.13,8.578e-05,2]
[419081926,1774846327335,160.0,8.578e-05,3]
[419081927,1774846385616,160.0,8.578e-05,3]
[419081928,1774846388550,1632.96,8.5e-05,2]
[419081929,1774846502811,161.65,8.5e-05,2]
[419081930,1774846550486,2975.79,6.102e-05,2]
[419081931,1774846552115,2975.79,6.423e-05,2]
[419081932,1774846552184,882.69,6.744e-05,2]
[419081933,1774846552209,2093.1,6.744e-05,2]
[419081934,1774846552266,2975.79,7.065e-05,2]
[419081935,1774846552338,2975.79,7.386e-05,2]
[419081936,1774846552405,1955.33,7.707e-05,2]
[419081937,1774846552428,1020.46,7.707e-05,2]
[419081938,1774846552527,2975.79,8.029e-05,2]
[419081939,1774846552586,2975.79,8.35e-05,2]
[419081941,1774846808165,175.0,8.5e-05,3]
[419081942,1774846987210,155.0,8.5e-05,3]
[419081943,1774847065528,200.0,8.556e-05,2]
[419081944,1774847067519,2278.47,8.578e-05,2]
[419081945,1774847150859,8806.42119304,0.0002,120]
[419081946,1774847205727,1709.05,8.137e-05,2]
[419081947,1774847349442,1025.01,8.484e-05,2]
[419081950,1774847417644,8975.0,8.513e-05,2]
[419081951,1774847417667,10000.01,8.513e-05,2]
[419081952,1774847417690,7634.75,8.513e-05,2]
[419081964,1774847433404,-2975.79,8.671e-05,2]
[419081965,1774847433419,-200.09824964,8.711e-05,2]
[419081966,1774847433429,-1200.0,8.749e-05,2]
[419081967,1774847433438,-62.11169036,8.891e-05,2]
[419081968,1774847433451,-237.88830964,8.891e-05,2]
[419081969,1774847433461,-300.0,8.891e-05,2]
[419081970,1774847433470,-300.0,8.892e-05,2]
[419081971,1774847433480,-1200.0,8.893e-05,2]
[419081972,1774847433490,-974.07,8.969e-05,2]
[419081973,1774847433499,-2975.79,8.992e-05,2]
[419081974,1774847433509,-31786.7524,9.072e-05,2]
[419081975,1774847433519,-501.68785901,9.153e-05,2]
[419081976,1774847433529,-1002.09629327,9.172e-05,2]
[419081977,1774847433539,-2260.04379862,9.172e-05,2]
[419081978,1774847433551,-150.0,9.172e-05,2]
[419081979,1774847433561,-2975.79,9.313e-05,2]
[419081980,1774847433573,-3507.88213946,9.313e-05,2]
[419081981,1774847433584,-315.31506907,9.313e-05,2]
[419081982,1774847433598,-1116.15279147,9.313e-05,2]
[419081983,1774847433608,-9999.99,9.313e-05,2]
[419081984,1774847433617,-61896.52967157,9.313e-05,2]
[419081985,1774847433640,-1305.38,9.313e-05,2]
[419081986,1774847433651,-1042.34847306,9.313e-05,2]
[419081987,1774847433663,-1145.93670931,9.313e-05,2]
[419081988,1774847433699,-1855.23122597,9.313e-05,2]
[419081989,1774847433746,-902.72993061,9.313e-05,2]
[419081990,1774847433759,-474.41347366,9.313e-05,2]
[419081991,1774847433786,-2448.59395939,9.313e-05,2]
[419081992,1774847433798,-23687.91655643,9.313e-05,2]
[419081993,1774847433808,-9999.99,9.313e-05,2]
[419081995,1774847433819,-150.99,9.313e-05,2]
[419081996,1774847433828,-332.0,9.358e-05,2]
[419081997,1774847433838,-749.0,9.381e-05,2]
[419081998,1774847433848,-369.0,9.401e-05,2]
[419081999,1774847433858,-1149.0,9.418e-05,2]
[419082000,1774847433868,-333.44762194,9.42e-05,2]
[419082001,1774847433878,-130.15815081,9.437e-05,2]
[419082008,1774847434260,193.93,8.5e-05,2]
[419082009,1774847438148,-603.22941727,9.437e-05,2]
[419082010,1774847438208,-501.61243192,9.437e-05,2]
[419082011,1774847438218,-500.0,9.499e-05,2]
[419082012,1774847438227,-613.87526399,9.499e-05,2]
[419082013,1774847438237,-500.0,9.499e-05,2]
[419082014,1774847438247,-418.17111612,9.499e-05,2]
[419082015,1774847438257,-500.0,9.499e-05,2]
[419082016,1774847438266,-302.45069651,9.499e-05,2]
[419082017,1774847438286,-197.54930349,9.499e-05,2]
[419082018,1774847438296,-500.0,9.499e-05,2]
[419082019,1774847438305,-86.7554668,9.499e-05,2]
[419082020,1774847438384,-413.2445332,9.499e-05,2]
[419082021,1774847438394,-500.0,9.499e-05,2]
[419082022,1774847438403,-500.0,9.499e-05,2]
[419082023,1774847438413,-500.0,9.499e-05,2]
[419082024,1774847438422,-500.0,9.499e-05,2]
[419082025,1774847438431,-500.0,9.499e-05,2]
[419082026,1774847438440,-500.0,9.499e-05,2]
[419082027,1774847438450,-500.0,9.499e-05,2]
[419082028,1774847438459,-6834.97279737,9.5e-05,3]
[419082029,1774847438471,-3015.00009,9.5e-05,3]
[419082030,1774847438483,-18240.63714299,9.5e-05,3]
[419082031,1774847438495,-5934.10007483,9.5e-05,3]
[419082032,1774847438505,-250.0,9.538e-05,2]
[419082033,1774847438515,-1680.0,9.624e-05,2]
[419082034,1774847438524,-2975.79,9.634e-05,2]
[419082035,1774847438534,-1676.54,9.656e-05,2]
[419082036,1774847438544,-500.0,9.656e-05,2]
[419082037,1774847438554,-1286.03609069,9.66e-05,2]
[419082038,1774847438566,-981.56,9.66e-05,2]
[419082039,1774847438579,-281.98190972,9.66e-05,2]
[419082040,1774847438601,-367.0,9.437e-05,2]
[419082214,1774847440406,-1584.0,9.437e-05,2]
[419082216,1774847440417,-2019.60199959,9.66e-05,2]
[419082219,1774847440427,-9999.99,9.67e-05,2]
[419082221,1774847440437,-764.0,9.683e-05,2]
[419082223,1774847440448,-353.0,9.683e-05,2]
[419082224,1774847440458,-197.0,9.703e-05,2]
[419082227,1774847440469,-327.0,9.781e-05,2]
[419082229,1774847440479,-816.0,9.782e-05,2]
[419082231,1774847440489,-500.0,9.808e-05,2]
[419082232,1774847440499,-11372.3,9.877e-05,2]
[419082233,1774847440508,-150.0,9.9e-05,2]
[419082234,1774847440518,-2975.79,9.955e-05,2]
[419082235,1774847440528,-500.0,0.0001,2]
[419082286,1774847441056,-500.0,0.0001,2]
[419082288,1774847441071,-500.0,0.0001,2]
[419082290,1774847441080,-500.0,0.0001,2]
[419082292,1774847441090,-500.0,0.0001,2]
[419082294,1774847441099,-500.0,0.0001,2]
[419082296,1774847441109,-500.0,0.0001,2]
[419082298,1774847441118,-500.0,0.0001,2]
[419082300,1774847441128,-500.0,0.0001,2]
[419082302,1774847441137,-500.0,0.0001,2]
[419082304,1774847441146,-500.0,0.0001,2]
[419082306,1774847441156,-151.0,0.0001,2]
[419082308,1774847441165,-151.0,0.0001,2]
[419082311,1774847441184,-151.0,0.0001,2]
[419082313,1774847441196,-151.0,0.0001,2]
[419082315,1774847441206,-200.0,0.0001,2]
[419082317,1774847441216,-151.0,0.0001,2]
[419082319,1774847441225,-151.0,0.0001,2]
[419082321,1774847441236,-151.0,0.0001,2]
[419082323,1774847441246,-151.0,0.0001,2]
[419082325,1774847441256,-151.0,0.0001,2]
[419082327,1774847441266,-151.0,0.0001,2]
[419082329,1774847441277,-151.0,0.0001,2]
[419082331,1774847441288,-151.0,0.0001,2]
[419082334,1774847441298,-151.0,0.0001,2]
[419082336,1774847441308,-151.0,0.0001,2]
[419082338,1774847441318,-151.0,0.0001,2]
[419082340,1774847441329,-151.0,0.0001,2]
[419082342,1774847441339,-151.0,0.0001,2]
[419082344,1774847441348,-151.0,0.0001,2]
[419082346,1774847441358,-151.0,0.0001,2]
[419082348,1774847441368,-151.0,0.0001,2]
[419082350,1774847441379,-500.0,0.0001,2]
[419082352,1774847441389,-151.0,0.0001,2]
[419082354,1774847441399,-298.09704378,0.0001,2]
[419082356,1774847441408,-500.0,0.0001,2]
[419082358,1774847441418,-151.0,0.0001,2]
[419082360,1774847441427,-500.0,0.0001,2]
[419082362,1774847441437,-151.0,0.0001,2]
[419082364,1774847441446,-500.0,0.0001,2]
[419082366,1774847441455,-151.0,0.0001,2]
[419082368,1774847441465,-500.0,0.0001,2]
[419082370,1774847441475,-151.0,0.0001,2]
[419082372,1774847441484,-500.0,0.0001,2]
[419082374,1774847441493,-151.0,0.0001,2]
[419082376,1774847441503,-500.0,0.0001,2]
[419082378,1774847441513,-151.0,0.0001,2]
[419082380,1774847441522,-500.0,0.0001,2]
[419082382,1774847441532,-500.0,0.0001,2]
[419082384,1774847441542,-500.0,0.0001,2]
[419082386,1774847441552,-500.0,0.0001,2]
[419082388,1774847441561,-255.0,0.00010089,2]
[419082390,1774847441571,-261.50854217,0.000101,2]
[419082392,1774847441581,-4881.99,0.00010104,2]
[419082394,1774847441591,-2975.79,0.00010277,2]
[419082396,1774847441600,-521.45538513,0.0001029,2]
[419082398,1774847441610,-2351.0,0.00010587,2]
[419082400,1774847441621,-2975.79,0.00010598,2]
[419082402,1774847441630,-8638.01,0.00010604,2]
[419082404,1774847441640,-3939.11,0.000107,2]
[419082406,1774847441650,-270.09856999,0.000107,2]
[419082408,1774847441660,-1003.81201125,0.0001075,30]
[419082410,1774847441670,-2975.79,0.00010919,2]
[419082413,1774847441686,-564.47601303,0.00010959,2]
[419082415,1774847441696,-150.0,0.00010959,2]
[419082417,1774847441706,-157.8,0.00010959,2]
[419082419,1774847441716,-422.22934078,0.00011039,2]
[419082421,1774847441727,-581.08188661,0.00011039,2]
[419082423,1774847441738,-433.0,0.00011098,2]
[419082425,1774847441748,-4531.44686384,0.00011099,2]
[419082427,1774847441758,-4531.44686384,0.00011099,2]
[419082429,1774847441768,-4531.44686384,0.00011099,2]
[419082431,1774847441778,-2975.79,0.0001124,2]
[419082433,1774847441789,-196.7895,0.000114,7]
[419082435,1774847441799,-4531.44686384,0.00011442,2]
[419082437,1774847441810,-250.0,0.00011457,2]
[419082440,1774847441820,-2783.69,0.00011507,2]
[419082442,1774847441830,-2975.79,0.00011561,2]
[419082444,1774847441840,-380.0,0.00011645,2]
[419082446,1774847441850,-2975.79,0.00011882,2]
[419082448,1774847441860,-1165.98217065,0.00012,7]
[419082450,1774847441870,-4531.44686384,0.00012185,2]
[419082452,1774847441881,-159.07,0.00012203,2]
[419082454,1774847441891,-2975.79,0.00012203,2]
[419082456,1774847441902,-296.0,0.00012207,2]
[419082458,1774847441912,-339.2,0.00012334,2]
[419082460,1774847441922,-258.1742,0.000129,12]
[419082462,1774847441932,-4531.44686384,0.00012928,2]
[419082464,1774847441943,-160.0,0.0001294,2]
[419082466,1774847441953,-160.0,0.0001294,2]
[419082468,1774847441963,-159.07,0.00012966,2]
[419082470,1774847441974,-5980.18545604,0.00012994,2]
[419082472,1774847441984,-250.0,0.00013,2]
[419082475,1774847441995,-4181.17044325,0.00013034,2]
[419082477,1774847442005,-295.04,0.00013094,2]
[419082479,1774847442016,-5980.18545598,0.00013317,2]
[419082481,1774847442026,-342.214694,0.00013425,2]
[419082483,1774847442036,-160.0,0.00013426,2]
[419082485,1774847442046,-578.20924308,0.00013639,2]
[419082487,1774847442056,-500.0,0.00013639,2]
[419082489,1774847442066,-500.0,0.00013639,2]
[419082491,1774847442078,-500.0,0.00013639,2]
[419082493,1774847442088,-500.0,0.00013639,2]
[419082495,1774847442098,-500.0,0.00013639,2]
[419082497,1774847442109,-500.0,0.00013639,2]
[419082499,1774847442119,-500.0,0.00013639,2]
[419082502,1774847442129,-500.0,0.00013639,2]
[419082504,1774847442140,-500.0,0.00013639,2]
[419082506,1774847442149,-500.0,0.00013639,2]
[419082508,1774847442159,-500.0,0.00013639,2]
[419082510,1774847442168,-500.0,0.00013639,2]
[419082512,1774847442177,-500.0,0.00013639,2]
[419082514,1774847442187,-500.0,0.00013639,2]
[419082516,1774847442197,-500.0,0.00013639,2]
[419082518,1774847442207,-500.0,0.00013639,2]
[419082520,1774847442216,-500.0,0.00013639,2]
[419082522,1774847442226,-500.0,0.00013639,2]
[419082524,1774847442236,-500.0,0.00013639,2]
[419082526,1774847442246,-500.0,0.00013639,2]
[419082528,1774847442256,-500.0,0.00013639,2]
[419082530,1774847442266,-500.0,0.00013639,2]
[419082532,1774847442276,-500.0,0.00013639,2]
[419082534,1774847442285,-500.0,0.00013639,2]
[419082536,1774847442296,-500.0,0.00013639,2]
[419082538,1774847442305,-500.0,0.00013639,2]
[419082540,1774847442315,-500.0,0.00013639,2]
[419082542,1774847442326,-500.0,0.00013639,2]
[419082544,1774847442336,-500.0,0.00013639,2]
[419082546,1774847442349,-500.0,0.00013639,2]
[419082548,1774847442359,-500.0,0.00013639,2]
[419082550,1774847442369,-500.0,0.00013639,2]
[419082551,1774847442379,-500.0,0.00013639,2]
[419082552,1774847442390,-500.0,0.00013639,2]
[419082553,1774847442401,-250.0,0.00013639,2]
[419082554,1774847442411,-250.0,0.00013639,2]
[419082555,1774847442421,-174.61919141,0.00013639,2]
[419082556,1774847442431,-151.0,0.00013639,2]
[419082557,1774847442441,-250.0,0.00013639,2]
[419082559,1774847442450,-250.0,0.00013639,2]
[419082560,1774847442460,-250.0,0.00013639,2]
[419082563,1774847442471,-250.0,0.00013639,2]
[419082565,1774847442481,-250.0,0.00013639,2]
[419082567,1774847442491,-250.0,0.00013639,2]
[419082569,1774847442500,-250.0,0.00013639,2]
[419082571,1774847442510,-250.0,0.00013639,2]
[419082573,1774847442520,-250.0,0.00013639,2]
[419082575,1774847442530,-743.50770149,0.00013639,2]
[419082577,1774847442540,-262.90206542,0.00013639,2]
[419082579,1774847442550,-500.0,0.00013639,2]
[419082581,1774847442560,-500.0,0.00013639,2]
[419082583,1774847442570,-500.0,0.00013639,2]
[419082585,1774847442580,-500.0,0.00013639,2]
[419082587,1774847442590,-500.0,0.00013639,2]
[419082589,1774847442601,-5980.18545598,0.0001364,2]
[419082591,1774847442610,-4531.44686384,0.00013671,2]
[419082593,1774847442621,-500.0,0.00013694,2]
[419082595,1774847442631,-151.0,0.00013694,2]
[419082597,1774847442641,-272.62944185,0.00013694,2]
[419082599,1774847442651,-500.0,0.00013698,2]
[419082601,1774847442661,-1786.76,0.00013699,2]
[419082603,1774847442671,-283.712441,0.0001371,7]
[419082605,1774847442681,-159.07,0.00013729,2]
[419082608,1774847442691,-500.0,0.00013749,2]
[419082610,1774847442701,-151.0,0.00013749,2]
[419082612,1774847442711,-282.71673119,0.00013749,2]
[419082614,1774847442722,-500.0,0.00013804,2]
[419082616,1774847442731,-151.0,0.00013804,2]
[419082618,1774847442741,-293.17725025,0.00013804,2]
[419082620,1774847442751,-500.0,0.00013859,2]
[419082622,1774847442760,-151.0,0.00013859,2]
[419082624,1774847442770,-304.02480851,0.00013859,2]
[419082626,1774847442780,-388.471238,0.00013859,7]
[419082628,1774847442790,-168.140208,0.00013859,7]
[419082630,1774847442800,-357.633543,0.0001386,7]
[419082632,1774847442810,-2000.0,0.00013907,2]
[419082634,1774847442821,-500.0,0.00013914,2]
[419082636,1774847442830,-151.0,0.00013914,2]
[419082638,1774847442841,-315.27372642,0.00013914,2]
[419082640,1774847442851,-5980.18545598,0.00013963,2]
[419082642,1774847442860,-500.0,0.00013969,2]
[419082644,1774847442870,-151.0,0.00013969,2]
[419082646,1774847442880,-326.9388543,0.00013969,2]
[419082648,1774847442891,-4181.17044325,0.00013989,2]
[419082650,1774847442901,-500.0,0.00014024,2]
[419082652,1774847442911,-151.0,0.00014024,2]
[419082654,1774847442922,-339.03559191,0.00014024,2]
[419082656,1774847442932,-168.13154679,0.00014073,2]
[419082658,1774847442942,-500.0,0.00014079,2]
[419082660,1774847442952,-151.0,0.00014079,2]
[419082662,1774847442963,-925.0,0.00014102,2]
[419082664,1774847442973,-1216.0,0.00014102,2]
[419082666,1774847442983,-91.72430303,0.00014102,2]
[419082671,1774847443009,-1093.9249713,0.00014102,2]
[419082679,1774847443052,-4828.35072567,0.00014102,2]
[419082682,1774847443063,-2468.0,0.00014102,2]
[419082685,1774847443073,-177.67846555,0.00014133,2]
[419082688,1774847443084,-500.0,0.00014134,2]
[419082691,1774847443095,-151.0,0.00014134,2]
[419082693,1774847443106,-65900.01120692,0.00014142,2]
[419082695,1774847443118,-666.0,0.00014142,2]
[419082697,1774847443129,-1664.0,0.00014143,5]
[419082699,1774847443140,-1336.0,0.00014143,5]
[419082701,1774847443150,-433.378356,0.00014143,2]
[419082703,1774847443161,-433.378356,0.00014143,2]
[419082705,1774847443174,-433.378356,0.00014143,2]
[419082707,1774847443184,-433.378356,0.00014143,2]
[419082709,1774847443195,-151.0,0.00014143,2]
[419082711,1774847443206,-151.0,0.00014143,2]
[419082713,1774847443217,-151.0,0.00014143,2]